fUSD/lending_fUSD_20240215
["ID","MTS","AMOUNT","RATE_DAILY","PERIOD"]
[314145339,1708019521799,-158.63,0.0004223,61]
[314145340,1708019521808,-198.61,0.0004223,61]
[314145341,1708019521818,-150.5,0.0004223,61]
[314145342,1708019521828,-150.5,0.0004223,61]
[314145343,1708019521836,-160.05,0.0004223,61]
[314145344,1708019521846,-150.5,0.0004223,61]
[314145345,1708019521855,-158.0,0.0004223,61]
[314145346,1708019521864,-150.5,0.0004223,61]
[314145347,1708019521873,-242.99,0.0004223,61]
[314145348,1708019521882,-158.1,0.0004223,61]
[314145349,1708019521891,-295.0,0.0004223,30]
[314145350,1708019521900,-170.0,0.0004223,61]
[314145351,1708019521909,-1131480.09055767,0.0004224,30]
[314145352,1708019521919,-212.0,0.0004224,2]
[314145353,1708019521927,-212.0,0.0004224,2]
[314145354,1708019521937,-209.0,0.0004224,2]
[314145355,1708019521946,-208.0,0.0004224,2]
[314145356,1708019521955,-216.0,0.0004224,2]
[314145357,1708019521964,-505.74031664,0.0004224,7]
[314145358,1708019521973,-16000.0,0.0004224,30]
[314145359,1708019521982,-159.53892364,0.00042243,30]
[314145360,1708019521990,-150.0,0.0004226,3]
[314145361,1708019522000,-156.94234784,0.00042288,30]
[314145362,1708019522010,-326.28,0.0004229,2]
[314145363,1708019522020,-1000.0,0.000423,46]
[314145364,1708019522029,-200.0,0.000423,16]
[314145365,1708019522038,-983.36,0.000423,15]
[314145366,1708019522048,-33970.64561177,0.000423,10]
[314145367,1708019522056,-2114.35,0.000423,7]
[314145368,1708019522065,-848.0,0.00042376,2]
[314145369,1708019522075,-151.18119458,0.00042384,30]
[314145370,1708019522085,-150.0,0.00042394,2]
[314145371,1708019522094,-150.0,0.00042402,3]
[314145372,1708019522104,-8177.0,0.0004242,30]
[314145373,1708019522113,-907.0,0.0004242,30]
[314145374,1708019522123,-500.0,0.00042432,30]
[314145375,1708019522133,-151.18119458,0.00042463,30]
[314145376,1708019522142,-500.0,0.00042465,14]
[314145377,1708019522151,-2021.98,0.00042465,7]
[314145378,1708019522160,-1000.0,0.00042465,3]
[314145379,1708019522169,-541.83,0.00042465,30]
[314145380,1708019522178,-500.0,0.00042465,30]
[314145381,1708019522187,-500.0,0.00042465,30]
[314145382,1708019522197,-530.12,0.00042465,30]
[314145383,1708019522206,-856.02,0.00042465,30]
[314145384,1708019522215,-1019.76,0.00042465,30]
[314145385,1708019522224,-500.0,0.00042465,30]
[314145386,1708019522234,-600.0,0.00042465,30]
[314145387,1708019522244,-550.0,0.00042465,7]
[314145388,1708019522253,-756.7,0.00042465,30]
[314145389,1708019522262,-704.22,0.00042465,30]
[314145390,1708019522271,-500.0,0.00042465,30]
[314145391,1708019522281,-1361.43,0.00042465,7]
[314145392,1708019522291,-1000.0,0.00042465,7]
[314145393,1708019522301,-1271.29,0.00042465,30]
[314145394,1708019522311,-598.49,0.00042465,30]
[314145395,1708019522460,-974.33,0.00042465,30]
[314145396,1708019522469,-500.0,0.00042465,30]
[314145397,1708019522479,-500.0,0.00042465,30]
[314145398,1708019522489,-500.0,0.00042465,30]
[314145399,1708019522499,-500.0,0.00042465,30]
[314145400,1708019522509,-693.16,0.00042465,30]
[314145401,1708019522518,-500.0,0.00042465,30]
[314145402,1708019522529,-177.14,0.00042465,30]
[314145403,1708019522539,-280.09724177,0.00042465,30]
[314145404,1708019522550,-1000.0,0.00042465,7]
[314145405,1708019522559,-1893.96,0.00042465,30]
[314145406,1708019522569,-564.89,0.00042465,30]
[314145407,1708019522578,-824.46,0.00042465,30]
[314145408,1708019522587,-616.25,0.00042465,30]
[314145409,1708019522597,-793.39,0.00042465,30]
[314145410,1708019522607,-649.79,0.00042465,30]
[314145411,1708019522617,-536.14,0.00042465,2]
[314145412,1708019522626,-500.0,0.00042465,30]
[314145413,1708019522636,-500.0,0.00042465,30]
[314145414,1708019522646,-500.0,0.00042465,30]
[314145415,1708019522656,-500.0,0.00042465,30]
[314145416,1708019522666,-1207.79,0.00042465,30]
[314145417,1708019522675,-500.0,0.00042465,30]
[314145418,1708019522684,-500.0,0.00042465,30]
[314145419,1708019522694,-734.84,0.00042465,2]
[314145420,1708019522705,-500.0,0.00042465,30]
[314145421,1708019522715,-1247.33,0.00042465,30]
[314145422,1708019522725,-1915.49,0.00042465,30]
[314145423,1708019522734,-974.82,0.00042465,14]
[314145424,1708019522743,-989.83,0.00042465,30]
[314145425,1708019522752,-3861.24,0.00042465,30]
[314145426,1708019522762,-500.0,0.00042465,30]
[314145427,1708019522771,-846.99,0.00042465,30]
[314145428,1708019522781,-500.0,0.00042465,30]
[314145429,1708019522793,-988.14,0.00042465,30]
[314145430,1708019522803,-3759.08,0.00042465,30]
[314145431,1708019522812,-500.0,0.00042465,30]
[314145432,1708019522822,-1634.49,0.00042465,30]
[314145433,1708019522831,-500.0,0.00042465,30]
[314145434,1708019522840,-2514.11,0.00042465,30]
[314145435,1708019522850,-4422.2,0.00042465,30]
[314145436,1708019522859,-500.0,0.00042465,30]
[314145437,1708019522869,-663.11,0.00042465,30]
[314145438,1708019522879,-500.0,0.00042465,30]
[314145439,1708019522889,-775.66,0.00042465,30]
[314145440,1708019522898,-362.52316229,0.00042465,30]
[314145441,1708019522908,-607.71,0.00042465,30]
[314145442,1708019522920,-500.0,0.00042465,30]
[314145443,1708019522930,-500.0,0.00042465,7]
[314145444,1708019522939,-500.0,0.00042465,30]
[314145445,1708019522949,-1744.6,0.00042465,30]
[314145446,1708019522959,-912.33,0.00042465,30]
[314145447,1708019522969,-500.0,0.00042465,30]
[314145448,1708019522980,-500.0,0.00042465,30]
[314145449,1708019522990,-1155.45,0.00042465,30]
[314145450,1708019523000,-1067.47,0.00042465,30]
[314145451,1708019523012,-519.85,0.00042465,30]
[314145452,1708019523022,-4410.01,0.00042465,30]
[314145453,1708019523032,-11001.71,0.00042465,30]
[314145454,1708019523043,-500.0,0.00042465,30]
[314145455,1708019523058,-3091.91,0.00042465,30]
[314145456,1708019523068,-500.0,0.00042465,30]
[314145457,1708019523078,-1258.05,0.00042465,30]
[314145458,1708019523088,-500.0,0.00042465,30]
[314145459,1708019523098,-842.08,0.00042465,30]
[314145460,1708019523108,-922.13,0.00042465,30]
[314145461,1708019523118,-656.01,0.00042465,30]
[314145462,1708019523128,-904.53,0.00042465,30]
[314145463,1708019523138,-3344.4,0.00042465,30]
[314145464,1708019523148,-2961.74,0.00042465,30]
[314145465,1708019523159,-500.0,0.00042465,30]
[314145466,1708019523169,-844.38,0.00042465,30]
[314145467,1708019523179,-500.0,0.00042465,30]
[314145468,1708019523188,-500.0,0.00042465,30]
[314145469,1708019523198,-1428.06,0.00042465,30]
[314145470,1708019523208,-535.86,0.00042465,30]
[314145471,1708019523218,-1125.27,0.00042465,30]
[314145472,1708019523228,-2160.8,0.00042465,30]
[314145473,1708019523237,-825.32,0.00042465,30]
[314145474,1708019523246,-537.94,0.00042465,30]
[314145475,1708019523255,-500.0,0.00042465,30]
[314145476,1708019523265,-677.81,0.00042465,30]
[314145477,1708019523275,-500.0,0.00042465,30]
[314145478,1708019523285,-1297.24,0.00042465,30]
[314145479,1708019523301,-500.0,0.00042465,30]
[314145480,1708019523311,-559.07,0.00042465,30]
[314145481,1708019523321,-500.0,0.00042465,30]
[314145482,1708019523331,-500.0,0.00042465,30]
[314145483,1708019523341,-2776.05,0.00042465,30]
[314145484,1708019523350,-4055.04,0.00042465,30]
[314145485,1708019523359,-4988.27,0.00042465,30]
[314145486,1708019523368,-500.0,0.00042465,30]
[314145487,1708019523378,-1472.71,0.00042465,30]
[314145488,1708019523388,-500.0,0.00042465,30]
[314145489,1708019523397,-500.0,0.00042465,30]
[314145490,1708019523406,-1663.68,0.00042465,30]
[314145491,1708019523416,-4949.84,0.00042465,30]
[314145492,1708019523425,-1970.1,0.00042465,30]
[314145493,1708019523435,-891.01,0.00042465,30]
[314145494,1708019523448,-1101.62,0.00042465,30]
[314145495,1708019523458,-500.0,0.00042465,30]
[314145496,1708019523467,-1111.21,0.00042465,30]
[314145497,1708019523476,-1055.37,0.00042465,30]
[314145498,1708019523486,-1292.58,0.00042465,30]
[314145499,1708019523495,-1203.88,0.00042465,30]
[314145500,1708019523504,-735.16,0.00042465,30]
[314145501,1708019523514,-996.39,0.00042465,30]
[314145502,1708019523524,-2325.06,0.00042465,30]
[314145503,1708019523534,-500.0,0.00042465,30]
[314145504,1708019523546,-500.0,0.00042465,30]
[314145505,1708019523555,-500.0,0.00042465,30]
[314145506,1708019523564,-5038.29,0.00042465,30]
[314145507,1708019523573,-500.0,0.00042465,30]
[314145508,1708019523582,-537.02779564,0.00042465,30]
[314145509,1708019523592,-765.74,0.00042465,30]
[314145510,1708019523601,-569.41,0.00042465,30]
[314145511,1708019523609,-4016.58,0.00042465,30]
[314145512,1708019523619,-524.19,0.00042465,30]
[314145513,1708019523627,-1145.21,0.00042465,30]
[314145514,1708019523637,-836.92,0.00042465,30]
[314145515,1708019523646,-619.17,0.00042465,30]
[314145516,1708019523656,-686.87,0.00042465,30]
[314145517,1708019523665,-1463.4,0.00042465,30]
[314145518,1708019523674,-713.6,0.00042465,30]
[314145519,1708019523684,-3254.19,0.00042465,30]
[314145520,1708019523694,-607.96,0.00042465,30]
[314145521,1708019523704,-556.07,0.00042465,30]
[314145522,1708019523713,-196.82,0.00042465,30]
[314145523,1708019523722,-1450.92,0.00042465,30]
[314145524,1708019523732,-556.14974083,0.00042465,30]
[314145525,1708019523741,-553.92,0.00042465,30]
[314145526,1708019523751,-1417.47,0.00042465,30]
[314145527,1708019523760,-2730.4,0.00042465,30]
[314145528,1708019523770,-5934.21,0.00042465,30]
[314145529,1708019523779,-585.8,0.00042465,30]
[314145530,1708019523788,-633.51,0.00042465,30]
[314145531,1708019523800,-1019.85,0.00042465,30]
[314145532,1708019523809,-701.09,0.00042465,30]
[314145533,1708019523819,-500.0,0.00042465,30]
[314145534,1708019523828,-1857.32,0.00042465,30]
[314145535,1708019523838,-3563.59,0.00042465,30]
[314145536,1708019523847,-4513.55,0.00042465,30]
[314145537,1708019523856,-1548.7,0.00042465,30]
[314145538,1708019523865,-500.0,0.00042465,30]
[314145539,1708019523874,-707.65,0.00042465,2]
[314145540,1708019523884,-500.0,0.00042465,7]
[314145541,1708019523894,-1098.48,0.00042465,30]
[314145542,1708019523903,-6547.24,0.00042465,30]
[314145543,1708019523913,-500.0,0.00042465,30]
[314145544,1708019523922,-995.72,0.00042465,30]
[314145545,1708019523932,-993.29,0.00042465,30]
[314145546,1708019523941,-500.0,0.00042465,30]
[314145547,1708019523951,-47725.72,0.00042465,30]
[314145548,1708019523960,-1324.67,0.00042465,30]
[314145549,1708019523969,-5000.54,0.00042465,30]
[314145550,1708019523978,-1048.47,0.00042465,30]
[314145551,1708019523987,-1233.71,0.00042465,30]
[314145552,1708019523997,-2120.05,0.00042465,30]
[314145553,1708019524006,-552.81,0.00042465,30]
[314145554,1708019524015,-3896.96,0.00042465,30]
[314145555,1708019524024,-235.76609466,0.00042465,30]
[314145556,1708019524033,-4265.71,0.00042465,30]
[314145557,1708019524044,-500.0,0.00042465,30]
[314145558,1708019524053,-724.89,0.00042465,30]
[314145559,1708019524063,-588.09,0.00042465,30]
[314145560,1708019524072,-9575.52,0.00042465,30]
[314145561,1708019524081,-513.7,0.00042465,30]
[314145562,1708019524090,-869.69510236,0.00042468,7]
[314145563,1708019524100,-271843.68996598,0.00042468,7]
[314145564,1708019524109,-204.06,0.0004247,61]
[314145565,1708019524118,-170.0,0.0004247,61]
[314145566,1708019524127,-150.5,0.0004248,61]
[314145567,1708019524137,-170.0,0.0004248,61]
[314145568,1708019524146,-645.95,0.0004248,61]
[314145569,1708019524156,-152.03,0.00042486,2]
[314145570,1708019524165,-150.5,0.0004249,61]
[314145571,1708019524175,-170.0,0.0004249,61]
[314145572,1708019524185,-642.0,0.0004249,61]
[314145573,1708019524194,-157.04839771,0.00042499,30]
[314145574,1708019524204,-1606.83153153,0.000425,60]
[314145575,1708019524213,-199.0,0.000425,7]
[314145576,1708019524223,-1000.0,0.000425,14]
[314145577,1708019524232,-679.0,0.000425,14]
[314145578,1708019524241,-150.0,0.000425,32]
[314145579,1708019524251,-2500.0,0.000425,2]
[314145580,1708019524260,-5364.51641404,0.000425,30]
[314145581,1708019524270,-1267.0,0.000425,30]
[314145582,1708019524279,-4218.1724811,0.00042514,5]
[314145583,1708019524288,-152.0,0.00042525,7]
[314145584,1708019524299,-151.0,0.00042525,7]
[314145585,1708019524308,-150.0,0.00042543,4]
[314145586,1708019524318,-157.58389202,0.0004257,30]
[314145587,1708019524327,-3155.16102046,0.000426,120]
[314145588,1708019524336,-153.28330263,0.00042603,30]
[314145589,1708019524346,-3761.6736611,0.00042617,2]
[314145590,1708019524356,-151.18119458,0.00042624,30]
[314145591,1708019524365,-151.18119458,0.0004264,30]
[314145592,1708019524374,-150.0,0.00042684,4]
[314145593,1708019524384,-3100.58180426,0.000427,30]
[314145594,1708019524393,-8532.62614073,0.00042718,7]
[314145595,1708019524403,-2021.98,0.00042739,7]
[314145596,1708019524411,-541.83,0.00042739,30]
[314145597,1708019524421,-500.0,0.00042739,30]
[314145598,1708019524430,-530.12,0.00042739,30]
[314145599,1708019524439,-856.02,0.00042739,30]
[314145600,1708019524451,-1019.76,0.00042739,30]
[314145601,1708019524462,-500.0,0.00042739,30]
[314145602,1708019524471,-600.0,0.00042739,30]
[314145603,1708019524481,-280.64329861,0.00042739,7]
[314145604,1708019524490,-756.7,0.00042739,30]
[314145605,1708019524501,-704.22,0.00042739,30]
[314145606,1708019524510,-500.0,0.00042739,30]
[314145607,1708019524520,-1361.43,0.00042739,7]
[314145608,1708019524532,-1000.0,0.00042739,7]
[314145609,1708019524548,-1271.29,0.00042739,30]
[314145610,1708019524562,-598.49,0.00042739,30]
[314145611,1708019524572,-974.33,0.00042739,30]
[314145612,1708019524582,-500.0,0.00042739,30]
[314145613,1708019524591,-625.20886648,0.00042739,30]
[314145614,1708019524601,-500.0,0.00042739,30]
[314145615,1708019524610,-169.40066089,0.00042739,30]
[314145616,1708019524620,-693.16,0.00042739,30]
[314145617,1708019524629,-500.0,0.00042739,30]
[314145618,1708019524639,-177.14,0.00042739,30]
[314145619,1708019524649,-1000.0,0.00042739,7]
[314145620,1708019524658,-1893.96,0.00042739,30]
[314145621,1708019524668,-564.89,0.00042739,30]
[314145622,1708019524677,-824.46,0.00042739,30]
[314145623,1708019524686,-616.25,0.00042739,30]
[314145624,1708019524696,-793.39,0.00042739,30]
[314145625,1708019524705,-649.79,0.00042739,30]
[314145626,1708019524714,-536.14,0.00042739,2]
[314145627,1708019524724,-567.44145162,0.00042739,30]
[314145628,1708019524734,-500.0,0.00042739,30]
[314145629,1708019524743,-500.0,0.00042739,30]
[314145630,1708019524753,-500.0,0.00042739,30]
[314145631,1708019524762,-1207.79,0.00042739,30]
[314145632,1708019524771,-218.36318239,0.00042739,30]
[314145633,1708019524780,-500.0,0.00042739,30]
[314145634,1708019524790,-734.84,0.00042739,2]
[314145635,1708019524801,-267.90090951,0.00042739,30]
[314145636,1708019524810,-1247.33,0.00042739,30]
[314145637,1708019524819,-1915.49,0.00042739,30]
[314145638,1708019524828,-974.82,0.00042739,14]
[314145639,1708019524837,-989.83,0.00042739,30]
[314145640,1708019524847,-3861.24,0.00042739,30]
[314145641,1708019524856,-500.0,0.00042739,30]
[314145642,1708019524866,-846.99,0.00042739,30]
[314145643,1708019524875,-500.0,0.00042739,30]
[314145644,1708019524884,-988.14,0.00042739,30]
[314145645,1708019524894,-3759.08,0.00042739,30]
[314145646,1708019524903,-500.0,0.00042739,30]
[314145647,1708019524914,-1634.49,0.00042739,30]
[314145648,1708019524925,-500.0,0.00042739,30]
[314145649,1708019524936,-2514.11,0.00042739,30]
[314145650,1708019524949,-4422.2,0.00042739,30]
[314145651,1708019524959,-500.0,0.00042739,30]
[314145652,1708019524968,-663.11,0.00042739,30]
[314145653,1708019524978,-500.0,0.00042739,30]
[314145654,1708019524987,-775.66,0.00042739,30]
[314145655,1708019524996,-607.71,0.00042739,30]
[314145656,1708019525006,-500.0,0.00042739,30]
[314145657,1708019525015,-500.0,0.00042739,7]
[314145658,1708019525024,-286.68797395,0.00042739,30]
[314145659,1708019525034,-1744.6,0.00042739,30]
[314145660,1708019525044,-912.33,0.00042739,30]
[314145661,1708019525054,-500.0,0.00042739,30]
[314145662,1708019525063,-216.87220264,0.00042739,30]
[314145663,1708019525073,-1155.45,0.00042739,30]
[314145664,1708019525084,-1067.47,0.00042739,30]
[314145665,1708019525094,-519.85,0.00042739,30]
[314145666,1708019525104,-4410.01,0.00042739,30]
[314145667,1708019525114,-11001.71,0.00042739,30]
[314145668,1708019525124,-160.36244774,0.00042739,30]
[314145669,1708019525134,-3091.91,0.00042739,30]
[314145670,1708019525144,-500.0,0.00042739,30]
[314145671,1708019525154,-1258.05,0.00042739,30]
[314145672,1708019525163,-500.0,0.00042739,30]
[314145673,1708019525173,-842.08,0.00042739,30]
[314145674,1708019525183,-922.13,0.00042739,30]
[314145675,1708019525193,-656.01,0.00042739,30]
[314145676,1708019525203,-904.53,0.00042739,30]
[314145677,1708019525213,-3344.4,0.00042739,30]
[314145678,1708019525223,-2961.74,0.00042739,30]
[314145679,1708019525233,-500.0,0.00042739,30]
[314145680,1708019525243,-844.38,0.00042739,30]
[314145681,1708019525253,-500.0,0.00042739,30]
[314145682,1708019525263,-500.0,0.00042739,30]
[314145683,1708019525273,-1428.06,0.00042739,30]
[314145684,1708019525283,-535.86,0.00042739,30]
[314145685,1708019525293,-1125.27,0.00042739,30]
[314145686,1708019525305,-2160.8,0.00042739,30]
[314145687,1708019525315,-825.32,0.00042739,30]
[314145688,1708019525324,-537.94,0.00042739,30]
[314145689,1708019525334,-500.0,0.00042739,30]
[314145690,1708019525344,-677.81,0.00042739,30]
[314145691,1708019525354,-500.0,0.00042739,30]
[314145692,1708019525364,-1297.24,0.00042739,30]
[314145693,1708019525374,-404.20370626,0.00042739,30]
[314145694,1708019525383,-559.07,0.00042739,30]
[314145695,1708019525393,-548.65322355,0.00042739,30]
[314145696,1708019525403,-500.0,0.00042739,30]
[314145697,1708019525413,-2776.05,0.00042739,30]
[314145698,1708019525422,-4055.04,0.00042739,30]
[314145699,1708019525431,-4988.27,0.00042739,30]
[314145700,1708019525443,-243.91923656,0.00042739,30]
[314145701,1708019525454,-1472.71,0.00042739,30]
[314145702,1708019525464,-500.0,0.00042739,30]
[314145703,1708019525474,-500.0,0.00042739,30]
[314145704,1708019525484,-1663.68,0.00042739,30]
[314145705,1708019525494,-4949.84,0.00042739,30]
[314145706,1708019525505,-1970.1,0.00042739,30]
[314145707,1708019525514,-891.01,0.00042739,30]
[314145708,1708019525523,-500.0,0.00042739,30]
[314145709,1708019525534,-1101.62,0.00042739,30]
[314145710,1708019525544,-1111.21,0.00042739,30]
[314145711,1708019525555,-1055.37,0.00042739,30]
[314145712,1708019525565,-1292.58,0.00042739,30]
[314145713,1708019525576,-1203.88,0.00042739,30]
[314145714,1708019525585,-735.16,0.00042739,30]
[314145715,1708019525595,-996.39,0.00042739,30]
[314145716,1708019525604,-2325.06,0.00042739,30]
[314145717,1708019525614,-500.0,0.00042739,30]
[314145718,1708019525623,-500.0,0.00042739,30]
[314145719,1708019525633,-500.0,0.00042739,30]
[314145720,1708019525642,-5038.29,0.00042739,30]
[314145721,1708019525651,-500.0,0.00042739,30]
[314145722,1708019525661,-765.74,0.00042739,30]
[314145723,1708019525670,-569.41,0.00042739,30]
[314145724,1708019525680,-4016.58,0.00042739,30]
[314145725,1708019525689,-524.19,0.00042739,30]
[314145726,1708019525698,-1145.21,0.00042739,30]
[314145727,1708019525707,-836.92,0.00042739,30]
[314145728,1708019525717,-619.17,0.00042739,30]
[314145729,1708019525727,-686.87,0.00042739,30]
[314145730,1708019525736,-1463.4,0.00042739,30]
[314145731,1708019525746,-713.6,0.00042739,30]
[314145732,1708019525755,-3254.19,0.00042739,30]
[314145733,1708019525764,-607.96,0.00042739,30]
[314145734,1708019525774,-556.07,0.00042739,30]
[314145735,1708019525783,-1450.92,0.00042739,30]
[314145736,1708019525793,-553.92,0.00042739,30]
[314145737,1708019525803,-1417.47,0.00042739,30]
[314145738,1708019525814,-2730.4,0.00042739,30]
[314145739,1708019525824,-5934.21,0.00042739,30]
[314145740,1708019525834,-585.8,0.00042739,30]
[314145741,1708019525843,-633.51,0.00042739,30]
[314145742,1708019525853,-1019.85,0.00042739,30]
[314145743,1708019525862,-701.09,0.00042739,30]
[314145744,1708019525872,-500.0,0.00042739,30]
[314145745,1708019525881,-1857.32,0.00042739,30]
[314145746,1708019525891,-3563.59,0.00042739,30]
[314145747,1708019525900,-4513.55,0.00042739,30]
[314145748,1708019525909,-1548.7,0.00042739,30]
[314145749,1708019525919,-500.0,0.00042739,30]
[314145750,1708019525930,-707.65,0.00042739,2]
[314145751,1708019525940,-500.0,0.00042739,7]
[314145752,1708019525950,-1098.48,0.00042739,30]
[314145753,1708019525959,-6547.24,0.00042739,30]
[314145754,1708019525969,-302.33580799,0.00042739,30]
[314145755,1708019525979,-995.72,0.00042739,30]
[314145756,1708019525988,-993.29,0.00042739,30]
[314145757,1708019525998,-500.0,0.00042739,30]
[314145758,1708019526008,-47725.72,0.00042739,30]
[314145759,1708019526017,-1324.67,0.00042739,30]
[314145760,1708019526027,-5000.54,0.00042739,30]
[314145761,1708019526036,-1048.47,0.00042739,30]
[314145762,1708019526046,-1233.71,0.00042739,30]
[314145763,1708019526056,-2120.05,0.00042739,30]
[314145764,1708019526066,-552.81,0.00042739,30]
[314145765,1708019526076,-3896.96,0.00042739,30]
[314145766,1708019526086,-4265.71,0.00042739,30]
[314145767,1708019526096,-500.0,0.00042739,30]
[314145768,1708019526105,-724.89,0.00042739,30]
[314145769,1708019526115,-9575.52,0.00042739,30]
[314145770,1708019526293,-588.09,0.00042739,30]
[314145771,1708019526303,-513.7,0.00042739,30]
[314145772,1708019526313,-153.28330265,0.0004276,30]
[314145773,1708019526323,-341.0,0.0004277,61]
[314145774,1708019526333,-341.0,0.0004278,61]
[314145775,1708019526343,-341.0,0.0004279,61]
[314145776,1708019526352,-151.18119458,0.00042796,30]
[314145777,1708019526362,-154938.0,0.000428,32]
[314145778,1708019526372,-200000.0,0.000428,33]
[314145779,1708019526382,-100000.0,0.000428,34]
[314145780,1708019526391,-137537.26278729,0.000428,31]
[314145781,1708019526762,-1942.37721319,0.000428,31]
[314145782,1708019526773,-271.9872882,0.000428,31]
[314145783,1708019526792,-500.0,0.00038356,7]
[314145784,1708019526803,-129.91572171,0.000428,31]
[314145785,1708019526814,-1046.7296758,0.000428,31]
[314145786,1708019526835,-159.619364,0.00042466,14]
[314145787,1708019526844,-340.380636,0.000428,31]
[314145788,1708019526855,-10947.4004,0.000428,31]
[314145789,1708019526941,-150.0,0.00038231,2]
[314145790,1708019526951,-636.94,0.00038356,7]
[314145791,1708019526960,-500.0,0.00038356,7]
[314145792,1708019526969,-518.61232324,0.00038356,7]
[314145793,1708019526978,-636.94,0.0003863,7]
[314145794,1708019526988,-500.0,0.0003863,7]
[314145795,1708019526998,-636.94,0.00038904,7]
[314145796,1708019527007,-500.0,0.00038904,7]
[314145797,1708019527017,-636.94,0.00039178,7]
[314145798,1708019527026,-150.0,0.00041231,2]
[314145799,1708019527036,-1233.04352888,0.00042465,30]
[314145800,1708019527049,-860.73647112,0.00042465,30]
[314145801,1708019527058,-2093.78,0.00042739,30]
[314145802,1708019527068,-150.78587617,0.000428,31]
[314145803,1708019527093,-636.94,0.00039452,7]
[314145804,1708019527102,-1903.39002328,0.000428,31]
[314145805,1708019527113,-3007.5963661,0.000428,31]
[314145806,1708019527124,-1531.16822515,0.000428,31]
[314145807,1708019527136,-3643.72269356,0.000428,31]
[314145808,1708019527234,-0.00360811,0.000428,31]
[314145809,1708019527245,-2541.61400036,0.000428,31]
[314145810,1708019527256,-2604.3,0.000428,31]
[314145811,1708019527268,-32401.36548508,0.000428,31]
[314145812,1708019527276,-5013.22,0.000428,2]
[314145813,1708019527286,-150.0,0.00042826,4]
[314145814,1708019527297,-8177.0,0.0004284,30]
[314145815,1708019527307,-907.0,0.0004284,30]
[314145816,1708019527317,-642.0,0.0004288,61]
[314145817,1708019527326,-152.89256061,0.0004288,30]
[314145818,1708019527335,-150.5,0.0004289,61]
[314145819,1708019527345,-168.33,0.0004289,61]
[314145820,1708019527354,-642.0,0.0004289,61]
[314145821,1708019527363,-151.18119458,0.00042892,30]
[314145822,1708019527372,-247.50712762,0.000429,2]
[314145823,1708019527382,-1000.0,0.000429,14]
[314145824,1708019527391,-10000.0,0.000429,21]
[314145825,1708019527401,-239.23902339,0.000429,30]
[314145826,1708019527410,-308.84,0.00042905,2]
[314145827,1708019527419,-166.60985157,0.00042909,30]
[314145828,1708019527428,-10034.82,0.0004295,2]
[314145829,1708019527437,-10034.82,0.0004295,2]
[314145830,1708019527458,-10034.82,0.0004295,2]
[314145831,1708019527468,-10034.82,0.0004295,2]
[314145832,1708019527477,-10034.82,0.0004295,2]
[314145833,1708019527486,-10034.82,0.0004295,2]
[314145834,1708019527495,-10034.82,0.0004295,2]
[314145835,1708019527504,-10034.82,0.0004295,2]
[314145836,1708019527513,-10034.82,0.0004295,2]
[314145837,1708019527522,-10034.82,0.0004295,2]
[314145838,1708019527533,-10034.82,0.0004295,2]